bitfinex/quotes_BTCUSD_20250519
["timestamp","ask_amount","ask_price","bid_price","bid_amount"]
[1747684356666,0.0608,105460.0,105450.0,1.45738406]
[1747684357311,0.07028145,105460.0,105450.0,1.45738406]
[1747684357657,0.07976308,105460.0,105450.0,1.45738406]
[1747684358228,0.07976308,105460.0,105450.0,1.36241506]
[1747684358437,0.07976308,105460.0,105450.0,1.33296006]
[1747684358678,0.07028145,105460.0,105450.0,1.33296006]
[1747684358890,0.07976308,105460.0,105450.0,1.33296006]
[1747684359096,0.0608,105460.0,105450.0,1.33296006]
[1747684359528,0.0308,105460.0,105450.0,1.33296006]
[1747684360383,0.0308,105460.0,105450.0,1.32175262]
[1747684360604,0.0308,105460.0,105450.0,1.33664808]
[1747684361190,0.061,105460.0,105450.0,1.33164808]
[1747684361356,0.061,105460.0,105450.0,1.66976808]
[1747684363718,0.061,105460.0,105450.0,1.4852547]
[1747684363970,0.0308,105460.0,105450.0,1.33476808]
[1747684364158,0.07342376,105470.0,105460.0,0.21809106]
[1747684364359,0.06394312,105470.0,105460.0,2.00796506]
[1747684365237,0.00214312,105470.0,105460.0,2.00796506]
[1747684365464,0.03364312,105470.0,105460.0,2.00796506]
[1747684365705,0.03464312,105470.0,105460.0,2.35693141]
[1747684365901,0.03564312,105470.0,105460.0,2.35693141]
[1747684366353,0.06604312,105470.0,105460.0,2.35693141]
[1747684366979,0.06604312,105470.0,105460.0,2.65693141]
[1747684367586,0.06604312,105470.0,105460.0,2.08399641]
[1747684368342,0.06404312,105470.0,105460.0,2.08399641]
[1747684368552,0.06404312,105470.0,105460.0,2.08499641]
[1747684368762,0.06404312,105470.0,105460.0,2.08599641]
[1747684368971,0.06404312,105470.0,105460.0,2.08499641]
[1747684369179,0.06404312,105470.0,105460.0,2.08399641]
[1747684369383,0.06404312,105470.0,105460.0,2.08599641]
[1747684370354,0.06404312,105470.0,105460.0,2.09719103]
[1747684374358,0.06404312,105470.0,105460.0,2.10089187]
[1747684374603,0.03364312,105470.0,105460.0,2.24540127]
[1747684374854,0.03364312,105470.0,105460.0,2.38752127]
[1747684375108,0.03364312,105470.0,105460.0,2.08752127]
[1747684375727,0.3181,105480.0,105470.0,0.21807038]
[1747684375934,0.31814768,105480.0,105470.0,3.07025938]
[1747684376142,0.31814768,105480.0,105470.0,3.04762438]
[1747684376349,0.31814768,105480.0,105470.0,2.97657038]
[1747684376970,0.32014768,105480.0,105470.0,2.98553673]
[1747684377146,0.32014768,105480.0,105470.0,2.93880473]
[1747684377507,0.32014768,105480.0,105470.0,2.74849273]
[1747684377673,0.32014768,105480.0,105470.0,2.85983473]
[1747684378123,0.32014768,105480.0,105470.0,2.47857831]
[1747684378343,0.32014768,105480.0,105470.0,2.44159331]
[1747684378550,0.32014768,105480.0,105470.0,2.29947331]
[1747684378767,0.32014768,105480.0,105470.0,2.44159331]
[1747684379145,0.32014768,105480.0,105470.0,2.63947331]
[1747684379353,0.32014768,105480.0,105470.0,2.78159331]
[1747684380332,0.33910745,105480.0,105470.0,1.34641558]
[1747684380512,0.32962743,105480.0,105470.0,0.88392831]
[1747684380716,0.32962743,105480.0,105470.0,1.22188831]
[1747684380959,0.33910745,105480.0,105470.0,1.17665531]
[1747684381323,0.33910736,105480.0,105470.0,1.16440131]
[1747684381724,0.32014768,105480.0,105470.0,1.02228131]
[1747684381952,0.32014768,105480.0,105470.0,1.26171071]
[1747684382162,0.32014768,105480.0,105470.0,1.11959071]
[1747684382378,0.32014768,105480.0,105470.0,1.26171071]
[1747684382616,0.32014768,105480.0,105470.0,1.11959071]
[1747684382820,0.32014768,105480.0,105470.0,1.26171071]
[1747684385933,0.32014768,105480.0,105470.0,1.11959071]
[1747684386351,0.32014768,105480.0,105470.0,1.26171071]
[1747684386863,0.32014768,105480.0,105470.0,1.27660617]
[1747684387188,0.32014768,105480.0,105470.0,0.84133677]
[1747684387400,0.35806776,105480.0,105470.0,1.17925677]
[1747684387605,0.55715763,105480.0,105470.0,1.17925695]
[1747684387814,0.35806731,105480.0,105470.0,1.15645468]
[1747684387987,0.34858711,105480.0,105470.0,1.15645468]
[1747684388205,0.34858711,105480.0,105470.0,1.01437468]
[1747684388436,0.32014768,105480.0,105470.0,1.01437468]
[1747684388646,0.32962752,105480.0,105470.0,1.15645468]
[1747684389132,0.33910754,105480.0,105470.0,1.15645468]
[1747684389339,0.32962752,105480.0,105470.0,1.15645468]
[1747684389832,0.31614768,105480.0,105470.0,1.01437468]
[1747684390040,0.25404768,105480.0,105470.0,1.25376408]
[1747684390271,0.25404768,105480.0,105470.0,1.11168408]
[1747684390486,0.32742752,105480.0,105470.0,1.11168408]
[1747684390660,0.32742743,105480.0,105470.0,1.15645468]
[1747684390881,0.32542743,105480.0,105470.0,0.81853468]
[1747684391076,0.31594768,105480.0,105470.0,1.01537468]
[1747684391290,0.32542743,105480.0,105470.0,1.15745468]
[1747684391490,0.31594768,105480.0,105470.0,1.15745468]
[1747684391711,0.31594768,105480.0,105470.0,1.15845468]
[1747684391959,0.33490745,105480.0,105470.0,1.01637468]
[1747684392219,0.33490745,105480.0,105470.0,0.82053468]
[1747684392477,0.33490736,105480.0,105470.0,1.15845468]
[1747684392740,0.32542743,105480.0,105470.0,1.01637468]
[1747684392947,0.33490736,105480.0,105470.0,1.01637468]
[1747684393156,0.32542743,105480.0,105470.0,1.15845468]
[1747684393376,0.32542743,105480.0,105470.0,1.1472701]
[1747684393587,0.33490736,105480.0,105470.0,1.1472701]
[1747684394140,0.33490736,105480.0,105470.0,1.0051901]
[1747684394345,0.33490736,105480.0,105470.0,0.8093501]
[1747684394585,0.32542743,105480.0,105470.0,1.1472701]
[1747684396716,0.32542743,105480.0,105470.0,1.0051901]
[1747684396891,0.31594768,105480.0,105470.0,1.1472701]
[1747684397090,0.31594768,105480.0,105470.0,1.0051901]
[1747684397409,0.31594768,105480.0,105470.0,1.1472701]
[1747684398673,0.31594768,105480.0,105470.0,1.0051901]
[1747684398967,0.31594768,105480.0,105470.0,1.1472701]
[1747684400097,0.31594768,105480.0,105470.0,1.0051901]
[1747684400321,0.31594768,105480.0,105470.0,1.1472701]
[1747684400810,0.31594768,105480.0,105470.0,0.8093501]
[1747684401102,0.31594768,105480.0,105470.0,1.0049901]
[1747684401260,0.31594768,105480.0,105470.0,1.1470701]
[1747684402013,0.32542734,105480.0,105470.0,1.1470701]
[1747684402588,0.31594768,105480.0,105470.0,1.1470701]
[1747684402755,0.31594768,105480.0,105470.0,1.0049901]
[1747684402918,0.31594768,105480.0,105470.0,1.1470701]
[1747684403997,0.31594768,105480.0,105470.0,1.0049901]
[1747684404218,0.31594768,105480.0,105470.0,1.1470701]
[1747684404414,0.31594768,105480.0,105470.0,1.13217464]
[1747684405437,0.31594768,105480.0,105470.0,0.99009464]
[1747684405651,0.31594768,105480.0,105470.0,1.13217464]
[1747684411416,0.31594768,105480.0,105470.0,0.99009464]
[1747684411589,0.31594768,105480.0,105470.0,1.13217464]
[1747684415417,0.31538768,105480.0,105470.0,1.13217464]
[1747684417262,0.31538768,105480.0,105470.0,0.99009464]
[1747684417421,0.31538768,105480.0,105470.0,1.13217464]
[1747684419904,0.31538768,105480.0,105470.0,0.79445464]
[1747684420097,0.31538768,105480.0,105470.0,1.13217464]
[1747684431584,0.31538768,105480.0,105470.0,0.79445464]
[1747684431799,0.34382774,105480.0,105470.0,0.766012]
[1747684431998,0.62126679,105480.0,105470.0,0.550075]
[1747684432298,0.62126679,105480.0,105470.0,0.66014209]
[1747684432509,0.61178677,105480.0,105470.0,0.46103335]
[1747684432795,0.61178677,105480.0,105470.0,0.35096635]
[1747684432926,0.61178677,105480.0,105470.0,0.69437209]
[1747684434539,0.61178677,105480.0,105470.0,0.99437209]
[1747684434738,0.61178677,105480.0,105470.0,1.00385336]
[1747684435310,0.32486743,105480.0,105470.0,1.02281509]
[1747684435534,0.34382774,105480.0,105470.0,0.72281509]
[1747684435712,0.34382765,105480.0,105470.0,0.72281509]
[1747684435912,0.35330794,105480.0,105470.0,0.72281509]
[1747684436757,0.35330794,105480.0,105470.0,0.74894703]
[1747684439312,0.35330794,105480.0,105470.0,0.73401449]
[1747684439686,0.35330794,105480.0,105470.0,0.56320503]
[1747684441882,0.35330794,105480.0,105470.0,0.37384874]
[1747684443303,0.54291734,105480.0,105470.0,0.37384874]
[1747684443538,0.55239781,105480.0,105470.0,0.37384874]
[1747684443721,0.35330794,105480.0,105470.0,0.37384874]
[1747684448849,0.36278832,105480.0,105470.0,0.37384874]
[1747684449175,0.36278832,105480.0,105470.0,0.22755174]
[1747684449351,0.36278832,105480.0,105470.0,0.65828374]
[1747684450123,0.55239772,105480.0,105470.0,0.53912274]
[1747684450329,0.33434745,105480.0,105470.0,0.39353374]
[1747684450519,0.32486743,105480.0,105470.0,0.39353374]
[1747684450729,0.31538768,105480.0,105470.0,0.39353374]
[1747684451158,0.33434709,105480.0,105470.0,0.39353374]
[1747684452080,0.34382693,105480.0,105470.0,0.39353374]
[1747684452240,0.34382693,105480.0,105470.0,0.73101374]
[1747684452913,0.31538768,105480.0,105470.0,0.73101374]
[1747684453121,0.31538768,105480.0,105470.0,1.07101374]
[1747684454248,0.31538768,105480.0,105470.0,1.08221314]
[1747684457821,0.31538768,105480.0,105470.0,1.09116564]
[1747684459434,0.32486734,105480.0,105470.0,1.09116564]
[1747684459637,0.31538768,105480.0,105470.0,1.09116564]
[1747684459835,0.31538768,105480.0,105470.0,1.09489878]
[1747684461019,0.31538768,105480.0,105470.0,1.09589878]
[1747684461373,0.31538768,105480.0,105470.0,0.95377878]
[1747684461609,0.31538768,105480.0,105470.0,1.09585878]
[1747684466696,0.31538768,105480.0,105470.0,1.09651502]
[1747684467388,0.32486752,105480.0,105470.0,0.75907502]
[1747684467592,0.31538768,105480.0,105470.0,1.09639502]
[1747684467931,0.31538768,105480.0,105470.0,0.95431502]
[1747684468138,0.31538768,105480.0,105470.0,1.09639502]
[1747684469220,0.31538768,105480.0,105470.0,0.95431502]
[1747684469828,0.31538768,105480.0,105470.0,1.09639502]
[1747684470244,0.31538768,105480.0,105470.0,0.95431502]
[1747684470565,0.31538768,105480.0,105470.0,1.09639502]
[1747684471196,0.31538768,105480.0,105470.0,0.95431502]
[1747684471618,0.31538768,105480.0,105470.0,1.09639502]
[1747684472060,0.31538768,105480.0,105470.0,0.95431502]
[1747684472435,0.31538768,105480.0,105470.0,1.09639502]
[1747684473996,0.31538768,105480.0,105470.0,0.85562681]
[1747684474224,0.31538768,105480.0,105470.0,1.04525419]
[1747684474425,0.31538768,105480.0,105470.0,1.07369719]
[1747684474806,0.31538768,105480.0,105470.0,1.06995357]
[1747684475435,0.31538768,105480.0,105470.0,0.92787357]
[1747684475612,0.32486752,105480.0,105470.0,0.93735493]
[1747684475841,0.32486743,105480.0,105470.0,0.93735493]
[1747684476148,0.33434727,105480.0,105470.0,0.74211493]
[1747684476368,0.33434727,105480.0,105470.0,0.70037167]
[1747684476369,0.53343669,105480.0,105470.0,0.70037167]
[1747684476542,0.36278778,105480.0,105470.0,0.70985249]
[1747684476763,0.3533074,105480.0,105470.0,0.71933322]
[1747684476895,0.36278769,105480.0,105470.0,0.71933322]
[1747684477096,0.54291734,105480.0,105470.0,0.70985249]
[1747684477301,0.31538768,105480.0,105470.0,0.71933322]
[1747684477510,0.32486734,105480.0,105470.0,0.71933322]
[1747684477713,0.31538768,105480.0,105470.0,0.71933322]
[1747684477909,0.31538768,105480.0,105470.0,0.86141322]
[1747684478368,0.31538768,105480.0,105470.0,0.71933322]
[1747684478509,0.31538768,105480.0,105470.0,0.86141322]
[1747684479302,0.31298768,105480.0,105470.0,0.86141322]
[1747684480025,0.32246734,105480.0,105470.0,0.86141322]
[1747684480227,0.31298768,105480.0,105470.0,0.86141322]
[1747684480637,0.32246743,105480.0,105470.0,0.71933322]
[1747684481019,0.32246743,105480.0,105470.0,0.86141322]
[1747684481509,0.31298768,105480.0,105470.0,0.86141322]
[1747684481719,0.32246743,105480.0,105470.0,0.86141322]
[1747684483943,0.32246743,105480.0,105470.0,0.8502243]
[1747684484322,0.33194745,105480.0,105470.0,0.8502243]
[1747684485365,0.33194736,105480.0,105470.0,0.8502243]
[1747684487196,0.33194736,105480.0,105470.0,0.86515684]
[1747684489039,0.32246743,105480.0,105470.0,0.86515684]
[1747684489216,0.33194736,105480.0,105470.0,0.86515684]
[1747684489662,0.32246743,105480.0,105470.0,0.72307684]
[1747684489890,0.32246743,105480.0,105470.0,0.86515684]
[1747684490548,0.32246752,105480.0,105470.0,0.8502243]
[1747684492072,0.32246743,105480.0,105470.0,0.7081443]
[1747684493848,0.32246743,105480.0,105470.0,0.9033043]
[1747684495317,0.31298768,105480.0,105470.0,0.9033043]
[1747684495534,0.32246743,105480.0,105470.0,0.9033043]
[1747684495744,0.32246743,105480.0,105470.0,1.0453843]
[1747684496052,0.31298768,105480.0,105470.0,1.0453843]
[1747684496281,0.32246743,105480.0,105470.0,1.0453843]
[1747684496700,0.32246734,105480.0,105470.0,1.0453843]
[1747684498030,0.31298768,105480.0,105470.0,1.0453843]
[1747684498249,0.32246734,105480.0,105470.0,1.0453843]
[1747684499910,0.31298768,105480.0,105470.0,1.0453843]
[1747684500258,0.31298768,105480.0,105470.0,0.9033043]
[1747684500466,0.33194745,105480.0,105470.0,0.9033043]
[1747684500688,0.32246743,105480.0,105470.0,0.9033043]
[1747684500899,0.33194736,105480.0,105470.0,0.7081443]
[1747684501113,0.33194736,105480.0,105470.0,1.0453843]
[1747684501319,0.31298768,105480.0,105470.0,1.0453843]
[1747684501756,0.32246743,105480.0,105470.0,0.9033043]
[1747684501992,0.32246743,105480.0,105470.0,1.0453843]
[1747684502410,0.31298768,105480.0,105470.0,0.9033043]
[1747684502680,0.32246734,105480.0,105470.0,0.7081443]
[1747684502943,0.35090785,105480.0,105470.0,0.89382357]
[1747684503171,0.34142747,105480.0,105470.0,1.0453843]
[1747684503415,0.34142747,105480.0,105470.0,0.69866357]
[1747684503656,0.52155757,105480.0,105470.0,0.35060874]
[1747684503883,0.52155757,105480.0,105470.0,0.01060874]
[1747684504347,0.52155757,105480.0,105470.0,0.35060874]
[1747684505563,0.52155757,105480.0,105470.0,0.36182004]
[1747684511141,0.52155757,105480.0,105470.0,0.55144742]
[1747684511759,0.52155757,105480.0,105470.0,0.36182004]
[1747684512290,0.52155757,105480.0,105470.0,0.55144742]
[1747684512850,0.51207737,105480.0,105470.0,0.56092878]
[1747684516001,0.60938677,105480.0,105470.0,0.36182004]
[1747684516206,0.59990648,105480.0,105470.0,0.36182004]
[1747684517987,0.59990648,105480.0,105470.0,0.02182004]
[1747684518183,0.61444733,105480.0,105470.0,0.02182004]
[1747684518788,0.75656733,105480.0,105470.0,0.02182004]
[1747684519449,0.75656733,105480.0,105470.0,0.00165624]
[1747684519874,0.75856733,105480.0,105470.0,0.00165624]
[1747684520068,0.75956733,105480.0,105470.0,0.00165624]
[1747684520855,1.06898175,105480.0,105470.0,0.00165624]
[1747684521268,0.75956733,105480.0,105470.0,0.00165624]
[1747684527790,0.61744733,105480.0,105470.0,0.00165624]
[1747684527970,0.75956733,105480.0,105470.0,0.00165624]
[1747684530257,0.61744733,105480.0,105470.0,0.00165624]
[1747684530455,0.60290648,105480.0,105470.0,0.00165624]
[1747684534363,0.25037003,105470.0,105460.0,0.02844498]
[1747684534567,0.28347056,105470.0,105460.0,0.55809113]
[1747684535166,0.28347056,105470.0,105460.0,0.5670375]
[1747684536091,0.27398974,105470.0,105460.0,0.5670375]
[1747684539759,0.27398974,105470.0,105460.0,0.55755569]
[1747684540437,0.27398974,105470.0,105460.0,0.90095759]
[1747684540641,0.27398974,105470.0,105460.0,0.9129394]
[1747684540854,0.27398974,105470.0,105460.0,0.89397569]
[1747684541413,0.26450865,105470.0,105460.0,0.8381137]
[1747684543274,0.26326865,105470.0,105460.0,0.8381137]
[1747684543955,0.26326865,105470.0,105460.0,0.85707777]
[1747684544509,0.26326865,105470.0,105460.0,0.84759578]
[1747684548935,0.26326865,105470.0,105460.0,0.76966078]
[1747684549131,0.26326865,105470.0,105460.0,0.35144637]
[1747684549340,0.25502738,105470.0,105460.0,0.35144637]
[1747684557145,0.25502738,105470.0,105460.0,0.54109173]
[1747684560082,0.25502738,105470.0,105460.0,0.85057399]
[1747684560846,0.25502738,105470.0,105460.0,0.35144637]
[1747684561837,0.25502738,105470.0,105460.0,0.36265767]
[1747684562637,0.35233678,105470.0,105460.0,0.02265767]
[1747684564569,0.36687763,105470.0,105460.0,0.02265767]
[1747684564804,0.50899763,105470.0,105460.0,0.02265767]
[1747684565224,0.50899763,105470.0,105460.0,0.01144637]
[1747684566422,0.51099763,105470.0,105460.0,0.01144637]
[1747684566739,0.51199763,105470.0,105460.0,0.01144637]
[1747684571198,0.51199763,105470.0,105460.0,0.0025]
[1747684576288,0.36987763,105470.0,105460.0,0.0025]
[1747684577274,0.19912744,105460.0,105450.0,9.78970032]
[1747684577478,0.35923684,105460.0,105450.0,10.12970032]
[1747684577896,0.35923684,105460.0,105450.0,10.1386674]
[1747684584233,0.35923684,105460.0,105450.0,10.1399674]
[1747684593622,0.35923684,105460.0,105450.0,10.1511787]
[1747684593835,0.36871883,105460.0,105450.0,10.34084204]
[1747684593979,0.35923684,105460.0,105450.0,10.34084204]
[1747684594346,0.37820082,105460.0,105450.0,10.36929089]
[1747684594552,0.34770082,105460.0,105450.0,10.3787736]
[1747684594764,0.02844543,105460.0,105450.0,11.37092113]
[1747684594977,0.23170811,105470.0,105460.0,0.54860943]
[1747684595209,0.22755102,105470.0,105460.0,0.54860952]
[1747684595538,0.25107029,105470.0,105460.0,0.5575766]
[1747684595738,0.24158947,105470.0,105460.0,0.54809461]
[1747684596288,0.24258947,105470.0,105460.0,0.54809461]
[1747684596537,0.24458947,105470.0,105460.0,0.54809461]
[1747684597315,0.24458947,105470.0,105460.0,0.55930591]
[1747684597925,0.25782738,105470.0,105460.0,0.36017838]
[1747684600098,0.25782738,105470.0,105460.0,0.34896708]
[1747684600505,0.25782738,105470.0,105460.0,0.5480947]
[1747684603039,0.35513678,105470.0,105460.0,0.34896708]
[1747684603249,0.35513678,105470.0,105460.0,0.00896708]
[1747684604563,0.49725678,105470.0,105460.0,0.00896708]
[1747684604760,0.25982744,105460.0,105450.0,10.1648271]
[1747684604970,0.35713684,105460.0,105450.0,10.1648271]
[1747684605164,0.35713684,105460.0,105450.0,9.8248271]
[1747684606887,0.35713684,105460.0,105450.0,9.7986674]
[1747684608722,0.37167769,105460.0,105450.0,9.7986674]
[1747684609155,0.67533572,105460.0,105450.0,9.7986674]
[1747684609355,0.37167769,105460.0,105450.0,9.7986674]
[1747684609885,0.58378271,105460.0,105450.0,9.7986674]
[1747684610095,0.37167769,105460.0,105450.0,9.7986674]
[1747684610444,0.37467769,105460.0,105450.0,9.78970032]
[1747684611078,0.37767769,105460.0,105450.0,9.78970032]
[1747684611291,1.01893713,105460.0,105450.0,9.78970032]
[1747684611913,0.82188773,105460.0,105450.0,9.78970032]
[1747684612106,0.60978271,105460.0,105450.0,9.78970032]
[1747684612509,0.82188773,105460.0,105450.0,9.78970032]
[1747684613008,0.82188773,105460.0,105450.0,9.76788308]
[1747684613503,0.60978271,105460.0,105450.0,9.76788308]
[1747684615103,0.82188773,105460.0,105450.0,9.76788308]
[1747684616409,1.16188773,105460.0,105450.0,9.76788308]
[1747684616621,1.16188773,105460.0,105450.0,9.76918308]
[1747684617629,1.28662271,105460.0,105450.0,9.76918308]
[1747684618041,0.94978271,105460.0,105450.0,9.76918308]
[1747684618250,1.28666271,105460.0,105450.0,9.76918308]
[1747684618458,0.70001684,105460.0,105450.0,9.76918308]
[1747684618636,0.50529684,105460.0,105450.0,9.76918308]
[1747684618836,0.36313684,105460.0,105450.0,9.76918308]
[1747684618982,0.51983769,105460.0,105450.0,9.76918308]
[1747684619177,0.50529684,105460.0,105450.0,9.76918308]
[1747684619633,0.33303684,105460.0,105450.0,9.77866624]
[1747684619782,0.33303684,105460.0,105450.0,9.76918308]
[1747684619984,0.30243684,105460.0,105450.0,10.10100642]
[1747684620184,0.006,105460.0,105450.0,10.48675464]
[1747684620408,0.02496317,105460.0,105450.0,10.68147464]
[1747684620623,0.03444507,105460.0,105450.0,10.68147464]
[1747684620861,0.04392715,105460.0,105450.0,10.68147464]
[1747684621067,0.02196308,105460.0,105450.0,11.80748764]
[1747684621298,0.04192688,105460.0,105450.0,11.39269508]
[1747684621504,0.04192688,105460.0,105450.0,11.02496808]
[1747684621758,0.05140896,105460.0,105450.0,11.02496808]
[1747684621992,0.2315735,105460.0,105450.0,10.11812952]
[1747684622199,0.3119191,105460.0,105450.0,10.44995286]
[1747684622410,0.3119191,105460.0,105450.0,10.46891891]
[1747684622710,0.3119191,105460.0,105450.0,10.31727602]
[1747684622863,0.3119191,105460.0,105450.0,10.45943602]
[1747684623060,0.3119191,105460.0,105450.0,10.46891909]
[1747684623270,0.3119191,105460.0,105450.0,10.47840198]
[1747684623676,0.3119191,105460.0,105450.0,10.15429087]
[1747684623854,0.3119191,105460.0,105450.0,10.30593349]
[1747684625008,0.12227329,105460.0,105450.0,10.30593349]
[1747684625192,0.12227329,105460.0,105450.0,10.30593286]
[1747684626720,0.13175474,105460.0,105450.0,10.30593286]
[1747684630768,0.16205474,105460.0,105450.0,10.16377286]
[1747684630974,0.16205474,105460.0,105450.0,10.30593286]
[1747684632090,0.15257275,105460.0,105450.0,10.30593286]
[1747684632512,0.16205474,105460.0,105450.0,10.30593286]
[1747684632661,0.15257275,105460.0,105450.0,10.30593286]
[1747684632859,0.16205474,105460.0,105450.0,10.30593286]
[1747684633091,0.19495474,105460.0,105450.0,10.29645033]
[1747684633286,0.20443682,105460.0,105450.0,10.29645033]
[1747684633450,0.20443682,105460.0,105450.0,10.30593286]
[1747684633672,0.19495474,105460.0,105450.0,10.30593286]
[1747684635027,0.18547275,105460.0,105450.0,10.30593286]
[1747684636159,0.18547275,105460.0,105450.0,10.16377286]
[1747684636357,0.18547275,105460.0,105450.0,10.30593286]
[1747684637587,0.006,105460.0,105450.0,10.51833686]
[1747684637782,0.006,105460.0,105450.0,10.53563686]
[1747684638003,0.006,105460.0,105450.0,10.51833686]
[1747684638215,0.0666,105460.0,105450.0,10.14480771]
[1747684638402,0.08556317,105460.0,105450.0,10.15429024]
[1747684638702,0.29865468,105460.0,105450.0,10.11635895]
[1747684638914,0.28817323,105460.0,105450.0,9.93617868]
[1747684639167,0.09852778,105460.0,105450.0,10.13532491]
[1747684639381,0.09852778,105460.0,105450.0,10.11635895]
[1747684639573,0.26920952,105460.0,105450.0,10.11635895]
[1747684639789,0.26920952,105460.0,105450.0,10.12584211]
[1747684640199,0.26920952,105460.0,105450.0,10.13532518]
[1747684640811,0.25972753,105460.0,105450.0,10.12584211]
[1747684643348,0.25972753,105460.0,105450.0,10.13532509]
[1747684644684,0.25972753,105460.0,105450.0,9.92669561]
[1747684644965,0.25972753,105460.0,105450.0,10.11635895]
[1747684645118,0.25972753,105460.0,105450.0,9.92669561]
[1747684645984,0.35703693,105460.0,105450.0,9.58669561]
[1747684646843,0.37157778,105460.0,105450.0,9.58669561]
[1747684647837,0.85977935,105460.0,105450.0,9.57774917]
[1747684648062,0.92029664,105460.0,105450.0,9.57774917]
[1747684648897,0.92529664,105460.0,105450.0,9.57774917]
[1747684649192,0.93029664,105460.0,105450.0,9.57774917]
[1747684649823,1.04168092,105460.0,105450.0,9.57774917]
[1747684651210,1.13899032,105460.0,105450.0,9.57774917]
[1747684651592,1.04168092,105460.0,105450.0,9.57774917]
[1747684653447,1.05223926,105460.0,105450.0,9.57774917]
[1747684654339,0.72861612,105460.0,105450.0,9.57774917]
[1747684657701,1.05223926,105460.0,105450.0,9.57774917]
[1747684658295,0.72861612,105460.0,105450.0,9.57774917]
[1747684658803,0.39213612,105460.0,105450.0,9.57774917]
[1747684659009,0.71809778,105460.0,105450.0,9.57774917]
[1747684659422,0.38157778,105460.0,105450.0,9.57774917]
[1747684659629,0.52373778,105460.0,105450.0,9.57774917]
[1747684659888,0.38157778,105460.0,105450.0,9.57774917]
[1747684660133,0.52373778,105460.0,105450.0,9.57774917]
[1747684663861,1.22885505,105460.0,105450.0,9.57774917]
[1747684671650,1.22885505,105460.0,105450.0,9.36628863]
[1747684672314,1.08669505,105460.0,105450.0,9.36628863]
[1747684672462,1.22885505,105460.0,105450.0,9.36628863]
[1747684675726,1.08669505,105460.0,105450.0,9.36628863]
[1747684675929,1.0721542,105460.0,105450.0,9.36628863]
[1747684676189,1.2143142,105460.0,105450.0,9.36628863]
[1747684676674,1.1842142,105460.0,105450.0,9.36628863]
[1747684677064,1.0729542,105460.0,105450.0,9.36628863]
[1747684677264,1.2151142,105460.0,105450.0,9.36628863]
[1747684680444,1.22965505,105460.0,105450.0,9.36628863]
[1747684688324,1.08749505,105460.0,105450.0,9.36628863]
[1747684688529,1.22965505,105460.0,105450.0,9.36628863]
[1747684697091,1.55320397,105460.0,105450.0,9.36628863]
[1747684698060,1.56320397,105460.0,105450.0,9.36628863]
[1747684698273,1.23965505,105460.0,105450.0,9.36628863]
[1747684699261,1.75716397,105460.0,105450.0,9.36628863]
[1747684701945,1.64599628,105460.0,105450.0,9.36628863]
[1747684702509,1.85837751,105460.0,105450.0,9.36628863]
[1747684702717,2.19837751,105460.0,105450.0,9.36628863]
[1747684703758,2.09731121,105460.0,105450.0,9.36628863]
[1747684704370,2.19462061,105460.0,105450.0,9.36628863]
[1747684704601,1.85850061,105460.0,105450.0,9.36628863]
[1747684704828,2.19414061,105460.0,105450.0,9.36628863]
[1747684705993,2.10683121,105460.0,105450.0,9.36628863]
[1747684709493,1.77119121,105460.0,105450.0,9.36628863]
[1747684709678,2.10687121,105460.0,105450.0,9.36628863]
[1747684710214,1.77119121,105460.0,105450.0,9.36628863]
[1747684710462,2.10687121,105460.0,105450.0,9.36628863]
[1747684711238,2.20418061,105460.0,105450.0,9.36628863]
[1747684711445,1.76119121,105460.0,105450.0,9.36628863]
[1747684711653,2.10691121,105460.0,105450.0,9.36628863]
[1747684718071,2.19665121,105460.0,105450.0,9.36628863]
[1747684718857,2.22511421,105460.0,105450.0,9.36628863]
[1747684719059,2.32242361,105460.0,105450.0,9.36628863]
[1747684723448,2.29396061,105460.0,105450.0,9.36628863]
[1747684725662,2.39512203,105460.0,105450.0,9.36628863]
[1747684725922,2.93879082,105460.0,105450.0,9.36628863]
[1747684726176,2.92879082,105460.0,105450.0,9.36628863]
[1747684726394,2.95537828,105460.0,105450.0,9.36628863]
[1747684726599,3.01824828,105460.0,105450.0,9.36628863]
[1747684726801,3.01524828,105460.0,105450.0,9.36628863]
[1747684727008,3.01724828,105460.0,105450.0,9.36628863]
[1747684727634,3.02763879,105460.0,105450.0,9.36628863]
[1747684727837,3.03263879,105460.0,105450.0,9.36728863]
[1747684728094,3.03257379,105460.0,105450.0,9.36728863]
[1747684729154,3.06104079,105460.0,105450.0,9.36728863]
[1747684730717,2.30417295,105460.0,105450.0,9.36728863]
[1747684730920,2.5400151,105460.0,105450.0,9.36728863]
[1747684731114,2.52796849,105460.0,105450.0,9.36728863]
[1747684731319,2.19224849,105460.0,105450.0,9.36728863]
[1747684731849,2.52796849,105460.0,105450.0,9.36728863]
[1747684732257,2.62527789,105460.0,105450.0,9.36728863]
[1747684732412,2.65186081,105460.0,105450.0,9.36728863]
[1747684734768,2.97569925,105460.0,105450.0,9.36728863]
[1747684734972,2.65186081,105460.0,105450.0,9.36728863]
[1747684735176,2.97569925,105460.0,105450.0,9.36728863]
[1747684735909,2.65186081,105460.0,105450.0,9.36728863]
[1747684736279,2.65142081,105460.0,105450.0,9.36728863]
[1747684736642,2.67988681,105460.0,105450.0,9.36728863]
[1747684737051,3.00372525,105460.0,105450.0,9.36728863]
[1747684737273,2.67988681,105460.0,105450.0,9.36728863]
[1747684738677,3.00372525,105460.0,105450.0,9.36728863]
[1747684740467,2.67988681,105460.0,105450.0,9.36728863]
[1747684742333,3.00372525,105460.0,105450.0,9.36728863]
[1747684742533,2.66844525,105460.0,105450.0,9.36728863]
[1747684742857,2.66844525,105460.0,105450.0,9.3507449]
[1747684742858,3.00372525,105460.0,105450.0,9.3507449]
[1747684742971,2.64186233,105460.0,105450.0,9.3507449]
[1747684743176,2.51110389,105460.0,105450.0,9.34316116]
[1747684743434,2.65330389,105460.0,105450.0,9.34316116]
[1747684743833,2.51110389,105460.0,105450.0,9.34316116]
[1747684744044,2.65330389,105460.0,105450.0,9.34316116]
[1747684744239,2.31802389,105460.0,105450.0,9.34316116]
[1747684744442,2.05653005,105460.0,105450.0,9.34316116]
[1747684744816,2.50306764,105460.0,105450.0,9.34216116]
[1747684744982,2.51760849,105460.0,105450.0,9.08556466]
[1747684745197,2.18924849,105460.0,105450.0,9.08656466]
[1747684745412,2.20077005,105460.0,105450.0,9.08656466]
[1747684745637,2.52460849,105460.0,105450.0,9.08656466]
[1747684745856,2.53160849,105460.0,105450.0,9.08756466]
[1747684746082,2.59673479,105460.0,105450.0,9.08756466]
[1747684746538,1.87241005,105460.0,105450.0,9.08756466]
[1747684746798,2.43186849,105460.0,105450.0,9.08756466]
[1747684747378,2.10803005,105460.0,105450.0,9.08756466]
[1747684747579,2.10799005,105460.0,105450.0,9.08756466]
[1747684747774,1.4381292,105460.0,105450.0,9.08756466]
[1747684748018,2.0520742,105460.0,105450.0,9.08756466]
[1747684748520,2.16392445,105460.0,105450.0,9.08756466]
[1747684748851,1.76263505,105460.0,105450.0,9.08756466]
[1747684749021,2.09791505,105460.0,105450.0,9.08756466]
[1747684749392,1.03009505,105460.0,105450.0,9.08756466]
[1747684749597,1.0155542,105460.0,105450.0,9.10486466]
[1747684749795,1.1577542,105460.0,105450.0,9.10486466]